[Event "Early-Titled-Tuesday-Blitz-February-06-2024"]
[Site "Chess.com"]
[Date "2024.02.06"]
[Round "7"]
[White "WiktoriaPOL"]
[Black "ChampStan"]
[Result "1-0"]
[WhiteElo "2265"]
[BlackElo "2107"]
[TimeControl "180+1"]
[EndTime "9:14:06 PST"]
[Termination "WiktoriaPOL won by resignation"]

1. c4 {[%clk 0:02:58]} 1... e5 {[%clk 0:02:58.6]} 2. Nc3 {[%clk 0:02:57.9]} 2...
Nf6 {[%clk 0:02:53.7]} 3. Nf3 {[%clk 0:02:57.8]} 3... Nc6 {[%clk 0:02:52.4]} 4.
e4 {[%clk 0:02:58.1]} 4... Bc5 {[%clk 0:02:47.8]} 5. Nxe5 {[%clk 0:02:57.9]}
5... Nxe5 {[%clk 0:02:42.3]} 6. d4 {[%clk 0:02:57.7]} 6... Bxd4 {[%clk
0:02:39.7]} 7. Qxd4 {[%clk 0:02:57.3]} 7... Nc6 {[%clk 0:02:39.2]} 8. Qd2 {[%clk
0:02:57.5]} 8... O-O {[%clk 0:02:38.2]} 9. b3 {[%clk 0:02:57.6]} 9... d6 {[%clk
0:02:29.5]} 10. Bb2 {[%clk 0:02:56.7]} 10... Re8 {[%clk 0:02:28.1]} 11. f3
{[%clk 0:02:57]} 11... Bd7 {[%clk 0:02:25.8]} 12. Be2 {[%clk 0:02:57.4]} 12...
Qe7 {[%clk 0:02:23.4]} 13. O-O {[%clk 0:02:57.5]} 13... Qe5 {[%clk 0:02:17.3]}
14. Nd5 {[%clk 0:02:51]} 14... Nxe4 {[%clk 0:02:04.3]} 15. fxe4 {[%clk 0:02:45]}
15... Qxe4 {[%clk 0:02:03.8]} 16. Qg5 {[%clk 0:02:33.1]} 16... Qg6 {[%clk
0:01:53.3]} 17. Qxg6 {[%clk 0:02:30.9]} 17... hxg6 {[%clk 0:01:52.2]} 18. Bf3
{[%clk 0:02:28.6]} 18... Rac8 {[%clk 0:01:49.4]} 19. Rae1 {[%clk 0:02:26.4]}
19... Be6 {[%clk 0:01:42.7]} 20. Kf2 {[%clk 0:02:11.7]} 20... Ne7 {[%clk
0:01:32.4]} 21. Nxe7+ {[%clk 0:02:09.6]} 21... Rxe7 {[%clk 0:01:32.1]} 22. Bxb7
{[%clk 0:02:09]} 22... Rb8 {[%clk 0:01:29.7]} 23. Bc6 {[%clk 0:02:05.6]} 1-0

[Event "Early-Titled-Tuesday-Blitz-February-06-2024"]
[Site "Chess.com"]
[Date "2024.02.06"]
[Round "7"]
[White "Canal_Showdrez"]
[Black "SabinaFoisor"]
[Result "0-1"]
[WhiteElo "2044"]
[BlackElo "2342"]
[TimeControl "180+1"]
[EndTime "9:14:12 PST"]
[Termination "SabinaFoisor won by resignation"]

1. d4 {[%clk 0:03:00.9]} 1... d5 {[%clk 0:02:58.1]} 2. Nf3 {[%clk 0:03:00.8]}
2... Nf6 {[%clk 0:02:57.5]} 3. e3 {[%clk 0:03:01]} 3... c6 {[%clk 0:02:56.2]} 4.
Bd3 {[%clk 0:03:00.4]} 4... e6 {[%clk 0:02:54.8]} 5. Nbd2 {[%clk 0:02:59.6]}
5... Be7 {[%clk 0:02:55.7]} 6. Ne5 {[%clk 0:02:58.7]} 6... O-O {[%clk
0:02:55.8]} 7. f4 {[%clk 0:02:58.5]} 7... c5 {[%clk 0:02:51.3]} 8. c3 {[%clk
0:02:57.8]} 8... b6 {[%clk 0:02:51.5]} 9. O-O {[%clk 0:02:56.4]} 9... Ba6 {[%clk
0:02:51.7]} 10. Ndf3 {[%clk 0:02:53.9]} 10... Bxd3 {[%clk 0:02:50.9]} 11. Nxd3
{[%clk 0:02:53.2]} 11... Nc6 {[%clk 0:02:49.1]} 12. Nfe5 {[%clk 0:02:52.7]}
12... Rc8 {[%clk 0:02:42.2]} 13. Qf3 {[%clk 0:02:43.6]} 13... Ne4 {[%clk
0:02:37.6]} 14. g4 {[%clk 0:02:28.4]} 14... f6 {[%clk 0:02:31.8]} 15. Nxc6
{[%clk 0:02:23.8]} 15... Rxc6 {[%clk 0:02:32.7]} 16. Nf2 {[%clk 0:02:22.8]}
16... f5 {[%clk 0:02:31.1]} 17. gxf5 {[%clk 0:02:20.5]} 17... exf5 {[%clk
0:02:32]} 18. Nd3 {[%clk 0:02:17.6]} 18... Rg6+ {[%clk 0:02:26.3]} 19. Kh1
{[%clk 0:02:16.8]} 19... Bd6 {[%clk 0:02:24]} 20. Ne5 {[%clk 0:02:16.2]} 20...
Bxe5 {[%clk 0:02:22.6]} 21. dxe5 {[%clk 0:02:09.4]} 21... Qh4 {[%clk 0:02:23]}
22. b4 {[%clk 0:01:43.4]} 22... Ng3+ {[%clk 0:02:16.7]} 23. Kg2 {[%clk
0:01:42.8]} 23... Nxf1+ {[%clk 0:02:01.6]} 24. Kxf1 {[%clk 0:01:43.7]} 24...
Qxh2 {[%clk 0:02:01.7]} 25. Qf2 {[%clk 0:01:28.9]} 25... Qh1+ {[%clk 0:02:01.5]}
26. Ke2 {[%clk 0:01:28.7]} 26... Rg2 {[%clk 0:02:01.5]} 0-1

[Event "Early-Titled-Tuesday-Blitz-February-06-2024"]
[Site "Chess.com"]
[Date "2024.02.06"]
[Round "7"]
[White "yaguigor"]
[Black "Der_Balak_3Halak"]
[Result "1-0"]
[WhiteElo "2748"]
[BlackElo "2504"]
[TimeControl "180+1"]
[EndTime "9:14:15 PST"]
[Termination "yaguigor won by resignation"]

1. Nf3 {[%clk 0:02:55.1]} 1... Nf6 {[%clk 0:02:59]} 2. c4 {[%clk 0:02:54.7]}
2... c6 {[%clk 0:02:57.9]} 3. d4 {[%clk 0:02:53.2]} 3... d5 {[%clk 0:02:58.4]}
4. Nc3 {[%clk 0:02:51.8]} 4... e6 {[%clk 0:02:57.7]} 5. Bg5 {[%clk 0:02:47.5]}
5... Be7 {[%clk 0:02:55.6]} 6. e3 {[%clk 0:02:46.4]} 6... O-O {[%clk 0:02:55.3]}
7. Rc1 {[%clk 0:02:43.8]} 7... h6 {[%clk 0:02:55.1]} 8. Bh4 {[%clk 0:02:42.6]}
8... Nbd7 {[%clk 0:02:54.4]} 9. Bd3 {[%clk 0:02:41.5]} 9... dxc4 {[%clk
0:02:54.7]} 10. Bxc4 {[%clk 0:02:41.2]} 10... b5 {[%clk 0:02:55.3]} 11. Bd3
{[%clk 0:02:41.3]} 11... Bb7 {[%clk 0:02:55.9]} 12. O-O {[%clk 0:02:38.4]} 12...
a6 {[%clk 0:02:48.8]} 13. e4 {[%clk 0:02:37.8]} 13... c5 {[%clk 0:02:47]} 14. e5
{[%clk 0:02:28.6]} 14... Nd5 {[%clk 0:02:43.8]} 15. Bxe7 {[%clk 0:02:24.9]}
15... Qxe7 {[%clk 0:02:39.6]} 16. Nxd5 {[%clk 0:02:06.5]} 16... Bxd5 {[%clk
0:02:40.5]} 17. dxc5 {[%clk 0:02:06.2]} 17... Nxc5 {[%clk 0:02:39.2]} 18. Bb1
{[%clk 0:02:06.4]} 18... Rfd8 {[%clk 0:02:33.3]} 19. Qc2 {[%clk 0:01:56.7]}
19... Ne4 {[%clk 0:02:17.8]} 20. Nd2 {[%clk 0:01:48.5]} 20... Rac8 {[%clk
0:02:01.1]} 21. Qd3 {[%clk 0:01:46.7]} 21... Bc6 {[%clk 0:01:45.6]} 22. Rxc6
{[%clk 0:01:43.2]} 22... Rxd3 {[%clk 0:01:40.8]} 23. Rxc8+ {[%clk 0:01:42.5]}
23... Kh7 {[%clk 0:01:41.4]} 24. Bxd3 {[%clk 0:01:41]} 1-0

[Event "Early-Titled-Tuesday-Blitz-February-06-2024"]
[Site "Chess.com"]
[Date "2024.02.06"]
[Round "7"]
[White "shimastream"]
[Black "Drags95"]
[Result "1-0"]
[WhiteElo "3019"]
[BlackElo "2840"]
[TimeControl "180+1"]
[EndTime "9:14:18 PST"]
[Termination "shimastream won by resignation"]

1. e4 {[%clk 0:03:00.9]} 1... e5 {[%clk 0:02:53.2]} 2. d4 {[%clk 0:02:56.1]}
2... exd4 {[%clk 0:02:53.1]} 3. Qxd4 {[%clk 0:02:57]} 3... Nc6 {[%clk
0:02:52.3]} 4. Qa4 {[%clk 0:02:57.1]} 4... Nf6 {[%clk 0:02:51.1]} 5. Nf3 {[%clk
0:02:56.4]} 5... d5 {[%clk 0:02:47.3]} 6. exd5 {[%clk 0:02:35.9]} 6... Nxd5
{[%clk 0:02:48.2]} 7. Bb5 {[%clk 0:02:35.4]} 7... Qe7+ {[%clk 0:02:40.7]} 8. Kf1
{[%clk 0:02:26.5]} 8... Bd7 {[%clk 0:02:38.7]} 9. Bd2 {[%clk 0:02:10.8]} 9... a6
{[%clk 0:02:38.8]} 10. Be2 {[%clk 0:02:02.8]} 10... O-O-O {[%clk 0:02:31.8]} 11.
Nc3 {[%clk 0:02:01.4]} 11... Ndb4 {[%clk 0:02:17.1]} 12. a3 {[%clk 0:01:40.2]}
12... b5 {[%clk 0:01:54.1]} 13. Nxb5 {[%clk 0:01:22.2]} 13... Nd4 {[%clk
0:01:36.4]} 14. Nfxd4 {[%clk 0:01:18.1]} 1-0

[Event "Early-Titled-Tuesday-Blitz-February-06-2024"]
[Site "Chess.com"]
[Date "2024.02.06"]
[Round "7"]
[White "TV27"]
[Black "winniethepooh04"]
[Result "1/2-1/2"]
[WhiteElo "2177"]
[BlackElo "2509"]
[TimeControl "180+1"]
[EndTime "9:14:35 PST"]
[Termination "Game drawn by repetition"]

1. d4 {[%clk 0:02:55.8]} 1... e6 {[%clk 0:03:00.9]} 2. g3 {[%clk 0:02:49.4]}
2... d5 {[%clk 0:02:59.8]} 3. Bg2 {[%clk 0:02:49.2]} 3... Nf6 {[%clk 0:03:00.4]}
4. c3 {[%clk 0:02:47.2]} 4... Be7 {[%clk 0:02:59.5]} 5. h4 {[%clk 0:02:45.4]}
5... b6 {[%clk 0:02:59]} 6. h5 {[%clk 0:02:45.3]} 6... h6 {[%clk 0:02:58.9]} 7.
Nh3 {[%clk 0:02:39.8]} 7... Bb7 {[%clk 0:02:59]} 8. Nd2 {[%clk 0:02:38.4]} 8...
Nxh5 {[%clk 0:02:57.9]} 9. e4 {[%clk 0:02:31.7]} 9... Nf6 {[%clk 0:02:57.9]} 10.
e5 {[%clk 0:02:31.8]} 10... Nfd7 {[%clk 0:02:58.4]} 11. Qg4 {[%clk 0:02:29.1]}
11... g6 {[%clk 0:02:49.4]} 12. Nf4 {[%clk 0:02:28.1]} 12... h5 {[%clk
0:02:46.7]} 13. Nxe6 {[%clk 0:02:08.8]} 13... fxe6 {[%clk 0:02:39.1]} 14. Qxg6+
{[%clk 0:02:03.6]} 14... Kf8 {[%clk 0:02:39.7]} 15. Rxh5 {[%clk 0:01:55.7]}
15... Rxh5 {[%clk 0:02:37]} 16. Qxh5 {[%clk 0:01:55.7]} 16... Qe8 {[%clk
0:02:09.2]} 17. Qh8+ {[%clk 0:01:34.8]} 17... Kf7 {[%clk 0:02:08.9]} 18. Qh7+
{[%clk 0:01:34.8]} 18... Kf8 {[%clk 0:02:08.8]} 19. Qh8+ {[%clk 0:00:49.5]}
19... Kf7 {[%clk 0:02:08.6]} 20. Qh7+ {[%clk 0:00:49.4]} 20... Kf8 {[%clk
0:02:08.7]} 21. Qh8+ {[%clk 0:00:44.7]} 1/2-1/2

[Event "Early-Titled-Tuesday-Blitz-February-06-2024"]
[Site "Chess.com"]
[Date "2024.02.06"]
[Round "7"]
[White "miraitrunks"]
[Black "Cheer_Down"]
[Result "0-1"]
[WhiteElo "2160"]
[BlackElo "2514"]
[TimeControl "180+1"]
[EndTime "9:15:08 PST"]
[Termination "Cheer_Down won by resignation"]

1. e4 {[%clk 0:02:59.4]} 1... c5 {[%clk 0:02:54.1]} 2. c3 {[%clk 0:02:57.2]}
2... Nf6 {[%clk 0:02:52.8]} 3. e5 {[%clk 0:02:57.2]} 3... Nd5 {[%clk 0:02:52.9]}
4. d4 {[%clk 0:02:58.1]} 4... cxd4 {[%clk 0:02:52.4]} 5. Nf3 {[%clk 0:02:58]}
5... Nc6 {[%clk 0:02:51.1]} 6. Bc4 {[%clk 0:02:56.3]} 6... Nb6 {[%clk
0:02:51.2]} 7. Bb3 {[%clk 0:02:56.7]} 7... d5 {[%clk 0:02:50.6]} 8. exd6 {[%clk
0:02:14.7]} 8... Qxd6 {[%clk 0:02:50.2]} 9. cxd4 {[%clk 0:02:14.4]} 9... Be6
{[%clk 0:02:45.7]} 10. Bxe6 {[%clk 0:02:10.5]} 10... Qxe6+ {[%clk 0:02:45.3]}
11. Be3 {[%clk 0:02:09.8]} 11... Qd7 {[%clk 0:02:39.5]} 12. O-O {[%clk
0:02:09.3]} 12... e6 {[%clk 0:02:39.8]} 13. Re1 {[%clk 0:02:09.5]} 13... Be7
{[%clk 0:02:37.8]} 14. Nc3 {[%clk 0:02:09.1]} 14... O-O {[%clk 0:02:34.4]} 15.
Ne5 {[%clk 0:02:09.2]} 15... Nxe5 {[%clk 0:02:33.5]} 16. dxe5 {[%clk 0:02:10.1]}
16... Qxd1 {[%clk 0:02:31.2]} 17. Raxd1 {[%clk 0:02:10]} 17... Rfd8 {[%clk
0:02:31]} 18. Bxb6 {[%clk 0:02:04]} 18... axb6 {[%clk 0:02:30.8]} 19. Rxd8+
{[%clk 0:02:01]} 19... Rxd8 {[%clk 0:02:30.2]} 20. Rd1 {[%clk 0:02:00.6]} 20...
Rxd1+ {[%clk 0:02:20.6]} 21. Nxd1 {[%clk 0:02:01.5]} 21... Bc5 {[%clk 0:02:21]}
22. Kf1 {[%clk 0:01:53.9]} 22... Bd4 {[%clk 0:02:21]} 23. f4 {[%clk 0:01:54.2]}
23... g5 {[%clk 0:02:16.7]} 24. g3 {[%clk 0:01:50.3]} 24... gxf4 {[%clk
0:02:16.2]} 25. gxf4 {[%clk 0:01:51.2]} 25... Kg7 {[%clk 0:02:16.5]} 26. Ke2
{[%clk 0:01:51.5]} 26... Kg6 {[%clk 0:02:08.6]} 27. Kd3 {[%clk 0:01:49.1]} 27...
Bg1 {[%clk 0:02:08.4]} 28. Ke4 {[%clk 0:01:39.5]} 28... Bxh2 {[%clk 0:02:07.6]}
29. Ne3 {[%clk 0:01:39.9]} 29... Bg1 {[%clk 0:02:05.2]} 30. Nc4 {[%clk
0:01:35.6]} 30... h5 {[%clk 0:02:02]} 31. Nd6 {[%clk 0:01:34.9]} 31... h4 {[%clk
0:01:52.6]} 32. Kf3 {[%clk 0:01:34]} 32... Bd4 {[%clk 0:01:46.2]} 33. Nxf7
{[%clk 0:01:28.6]} 33... Kxf7 {[%clk 0:01:44.6]} 0-1

[Event "Early-Titled-Tuesday-Blitz-February-06-2024"]
[Site "Chess.com"]
[Date "2024.02.06"]
[Round "7"]
[White "AlexandraSamaganova"]
[Black "chezzgirl04"]
[Result "1-0"]
[WhiteElo "2356"]
[BlackElo "2152"]
[TimeControl "180+1"]
[EndTime "9:15:10 PST"]
[Termination "AlexandraSamaganova won by resignation"]

1. c4 {[%clk 0:02:58.8]} 1... e5 {[%clk 0:02:59.6]} 2. Nc3 {[%clk 0:02:53.7]}
2... c6 {[%clk 0:02:58.6]} 3. Nf3 {[%clk 0:02:52.9]} 3... Bd6 {[%clk 0:02:54.9]}
4. e3 {[%clk 0:02:43.5]} 4... Bc7 {[%clk 0:02:54.5]} 5. d4 {[%clk 0:02:36.7]}
5... exd4 {[%clk 0:02:52.9]} 6. Nxd4 {[%clk 0:02:36.7]} 6... Ne7 {[%clk
0:02:41.4]} 7. Bd3 {[%clk 0:02:33.2]} 7... O-O {[%clk 0:02:38]} 8. O-O {[%clk
0:02:32.6]} 8... d5 {[%clk 0:02:31.7]} 9. Qe2 {[%clk 0:02:06.2]} 9... Qd6 {[%clk
0:02:18.3]} 10. g3 {[%clk 0:01:59.8]} 10... a6 {[%clk 0:02:16.9]} 11. Rd1 {[%clk
0:01:57.2]} 11... Nd7 {[%clk 0:01:58.9]} 12. e4 {[%clk 0:01:50.6]} 12... c5
{[%clk 0:01:55.8]} 13. Nb3 {[%clk 0:01:05.7]} 13... d4 {[%clk 0:01:51.8]} 14.
Bf4 {[%clk 0:00:58.1]} 14... Qc6 {[%clk 0:01:32.9]} 15. Nd5 {[%clk 0:00:54]}
15... Bxf4 {[%clk 0:01:22.3]} 16. Nxe7+ {[%clk 0:00:53.1]} 1-0

[Event "Early-Titled-Tuesday-Blitz-February-06-2024"]
[Site "Chess.com"]
[Date "2024.02.06"]
[Round "7"]
[White "TrompeterImEther"]
[Black "Adar_07"]
[Result "0-1"]
[WhiteElo "2540"]
[BlackElo "2720"]
[TimeControl "180+1"]
[EndTime "9:15:15 PST"]
[Termination "Adar_07 won by resignation"]

1. e4 {[%clk 0:03:00.9]} 1... c6 {[%clk 0:02:56.6]} 2. Nf3 {[%clk 0:03:00.5]}
2... d5 {[%clk 0:02:57.5]} 3. Nc3 {[%clk 0:03:00.9]} 3... Bg4 {[%clk 0:02:56.6]}
4. h3 {[%clk 0:03:00.6]} 4... Bh5 {[%clk 0:02:57]} 5. exd5 {[%clk 0:02:55.1]}
5... cxd5 {[%clk 0:02:57.9]} 6. g4 {[%clk 0:02:53.1]} 6... Bg6 {[%clk
0:02:58.5]} 7. Ne5 {[%clk 0:02:52.7]} 7... Nc6 {[%clk 0:02:58.9]} 8. d4 {[%clk
0:02:50.7]} 8... e6 {[%clk 0:02:56.6]} 9. Bb5 {[%clk 0:02:44.6]} 9... Qc7 {[%clk
0:02:54.3]} 10. Bxc6+ {[%clk 0:02:36.3]} 10... bxc6 {[%clk 0:02:53.2]} 11. Bf4
{[%clk 0:02:33.6]} 11... Bd6 {[%clk 0:02:52.4]} 12. Qd2 {[%clk 0:02:29.4]} 12...
Ne7 {[%clk 0:02:49.3]} 13. Ne2 {[%clk 0:02:26.2]} 13... Rb8 {[%clk 0:02:45.6]}
14. c3 {[%clk 0:02:25.7]} 14... c5 {[%clk 0:02:42.6]} 15. dxc5 {[%clk
0:02:17.2]} 15... Qxc5 {[%clk 0:02:43.5]} 16. Nd4 {[%clk 0:02:13.5]} 16... Qc7
{[%clk 0:02:39.7]} 17. Nxg6 {[%clk 0:02:07.4]} 17... hxg6 {[%clk 0:02:37.5]} 18.
Bxd6 {[%clk 0:02:01.5]} 18... Qxd6 {[%clk 0:02:38.4]} 19. O-O-O {[%clk
0:01:58.5]} 19... Nc6 {[%clk 0:02:33.1]} 20. Nxc6 {[%clk 0:01:51.6]} 20... Qxc6
{[%clk 0:02:34]} 21. Qd4 {[%clk 0:01:51.8]} 21... Qb6 {[%clk 0:02:24.4]} 22.
Qxb6 {[%clk 0:01:49.9]} 22... Rxb6 {[%clk 0:02:25.3]} 23. Rd2 {[%clk 0:01:47.9]}
23... g5 {[%clk 0:02:24.9]} 24. f3 {[%clk 0:01:44.2]} 24... Ke7 {[%clk
0:02:23.2]} 25. Rdh2 {[%clk 0:01:44.2]} 25... Rc8 {[%clk 0:02:13.6]} 26. Kb1
{[%clk 0:01:41.1]} 26... Rxc3 {[%clk 0:02:13]} 27. Rf1 {[%clk 0:01:32.9]} 27...
Re3 {[%clk 0:02:05.2]} 28. h4 {[%clk 0:01:32.7]} 28... gxh4 {[%clk 0:02:04]} 29.
Rxh4 {[%clk 0:01:33.6]} 29... Re2 {[%clk 0:02:04.3]} 30. b3 {[%clk 0:01:33.8]}
30... Rc6 {[%clk 0:02:04.6]} 31. f4 {[%clk 0:01:32.7]} 31... Rcc2 {[%clk
0:02:04.5]} 32. f5 {[%clk 0:01:31.1]} 32... Rb2+ {[%clk 0:02:05]} 33. Kc1 {[%clk
0:01:31.1]} 33... Rxa2 {[%clk 0:02:05.5]} 34. Kb1 {[%clk 0:01:31.6]} 34... Reb2+
{[%clk 0:02:05.8]} 35. Kc1 {[%clk 0:01:32.2]} 35... Rxb3 {[%clk 0:02:05.5]} 36.
Rf4 {[%clk 0:01:31.6]} 36... e5 {[%clk 0:02:04]} 37. f6+ {[%clk 0:01:27.3]}
37... gxf6 {[%clk 0:02:04.9]} 38. Rf5 {[%clk 0:01:28]} 38... Rg3 {[%clk
0:02:00.3]} 39. Kb1 {[%clk 0:01:23.2]} 39... Re2 {[%clk 0:01:59.9]} 40. Rf1
{[%clk 0:01:20.9]} 40... Rgg2 {[%clk 0:01:56.8]} 41. Rh6 {[%clk 0:01:20.4]}
41... Rb2+ {[%clk 0:01:56]} 42. Kc1 {[%clk 0:01:20.7]} 42... Ra2 {[%clk
0:01:56.5]} 43. Kb1 {[%clk 0:01:20.9]} 43... Rab2+ {[%clk 0:01:54.3]} 44. Kc1
{[%clk 0:01:20.9]} 44... Rbf2 {[%clk 0:01:51.4]} 45. Re1 {[%clk 0:01:19.6]}
45... Rxg4 {[%clk 0:01:51.3]} 0-1

[Event "Early-Titled-Tuesday-Blitz-February-06-2024"]
[Site "Chess.com"]
[Date "2024.02.06"]
[Round "7"]
[White "Maxfan2008"]
[Black "ValentinDragnev"]
[Result "0-1"]
[WhiteElo "2555"]
[BlackElo "2765"]
[TimeControl "180+1"]
[EndTime "9:15:25 PST"]
[Termination "ValentinDragnev won by checkmate"]

1. d4 {[%clk 0:03:00.9]} 1... d5 {[%clk 0:02:58.6]} 2. c4 {[%clk 0:03:00.7]}
2... e6 {[%clk 0:02:59.3]} 3. Nc3 {[%clk 0:03:00.5]} 3... c5 {[%clk 0:03:00]} 4.
cxd5 {[%clk 0:02:59.9]} 4... cxd4 {[%clk 0:03:00.6]} 5. Qa4+ {[%clk 0:02:59.3]}
5... Bd7 {[%clk 0:03:00.6]} 6. Qxd4 {[%clk 0:02:59.5]} 6... exd5 {[%clk
0:03:01.2]} 7. Qxd5 {[%clk 0:03:00.4]} 7... Nf6 {[%clk 0:03:01.7]} 8. Qd1 {[%clk
0:03:00.7]} 8... Bc5 {[%clk 0:02:59.1]} 9. Nf3 {[%clk 0:02:51.6]} 9... O-O
{[%clk 0:02:59.2]} 10. e3 {[%clk 0:02:51.7]} 10... Qe7 {[%clk 0:02:50.4]} 11.
Be2 {[%clk 0:02:51.3]} 11... Rd8 {[%clk 0:02:50.9]} 12. O-O {[%clk 0:02:45]}
12... Nc6 {[%clk 0:02:50.7]} 13. Bd2 {[%clk 0:02:41.5]} 13... Rac8 {[%clk
0:02:49.5]} 14. Rc1 {[%clk 0:02:41.2]} 14... Ne5 {[%clk 0:02:39.6]} 15. Qc2
{[%clk 0:02:28.2]} 15... Bc6 {[%clk 0:02:37.4]} 16. Nxe5 {[%clk 0:01:49.5]}
16... Qxe5 {[%clk 0:02:38.3]} 17. Rfd1 {[%clk 0:01:43.1]} 17... h5 {[%clk
0:02:38.9]} 18. Bf1 {[%clk 0:01:37.6]} 18... Ng4 {[%clk 0:02:34.5]} 19. g3
{[%clk 0:01:21]} 19... h4 {[%clk 0:02:34.9]} 20. Bg2 {[%clk 0:01:13]} 20... hxg3
{[%clk 0:02:28.8]} 21. hxg3 {[%clk 0:01:12.8]} 21... Qh5 {[%clk 0:02:28.5]} 22.
Ne4 {[%clk 0:00:57.1]} 22... Bf8 {[%clk 0:01:55]} 23. Bc3 {[%clk 0:00:31.3]}
23... Qh2+ {[%clk 0:01:51.7]} 24. Kf1 {[%clk 0:00:31.4]} 24... Bb5+ {[%clk
0:01:52.6]} 25. Ke1 {[%clk 0:00:29.2]} 25... Qg1+ {[%clk 0:01:51.8]} 26. Bf1
{[%clk 0:00:29.3]} 26... Qxf1# {[%clk 0:01:52.3]} 0-1

[Event "Early-Titled-Tuesday-Blitz-February-06-2024"]
[Site "Chess.com"]
[Date "2024.02.06"]
[Round "7"]
[White "Aradhya2000"]
[Black "Predo63"]
[Result "1-0"]
[WhiteElo "2694"]
[BlackElo "2520"]
[TimeControl "180+1"]
[EndTime "9:15:32 PST"]
[Termination "Aradhya2000 won by resignation"]

1. d4 {[%clk 0:03:00.9]} 1... d5 {[%clk 0:02:57.5]} 2. c4 {[%clk 0:03:01.4]}
2... c6 {[%clk 0:02:57.9]} 3. Nf3 {[%clk 0:03:01.7]} 3... Nf6 {[%clk 0:02:58.1]}
4. e3 {[%clk 0:03:01.7]} 4... Bf5 {[%clk 0:02:56.5]} 5. Nc3 {[%clk 0:03:01.5]}
5... e6 {[%clk 0:02:55.2]} 6. Nh4 {[%clk 0:03:01.2]} 6... Bg6 {[%clk 0:02:54.9]}
7. h3 {[%clk 0:02:58.9]} 7... Nbd7 {[%clk 0:02:54.6]} 8. Nxg6 {[%clk 0:02:58.4]}
8... hxg6 {[%clk 0:02:54.5]} 9. Bd3 {[%clk 0:02:59.1]} 9... Be7 {[%clk
0:02:53.6]} 10. O-O {[%clk 0:02:58.9]} 10... a6 {[%clk 0:02:53.1]} 11. c5 {[%clk
0:02:52.5]} 11... e5 {[%clk 0:02:51.4]} 12. f4 {[%clk 0:02:51.5]} 12... e4
{[%clk 0:02:51.5]} 13. Be2 {[%clk 0:02:51.2]} 13... Nh5 {[%clk 0:02:48.3]} 14.
b4 {[%clk 0:02:46.8]} 14... Ng3 {[%clk 0:02:45.9]} 15. Re1 {[%clk 0:02:47]}
15... Nxe2+ {[%clk 0:02:46.2]} 16. Rxe2 {[%clk 0:02:46.8]} 16... f5 {[%clk
0:02:46.5]} 17. a4 {[%clk 0:02:46.1]} 17... g5 {[%clk 0:02:43.7]} 18. Rf2 {[%clk
0:02:31.9]} 18... O-O {[%clk 0:02:31.2]} 19. Rb1 {[%clk 0:02:30.8]} 19... gxf4
{[%clk 0:02:26.6]} 20. Rxf4 {[%clk 0:02:30.4]} 20... Bg5 {[%clk 0:02:26.7]} 21.
Rf1 {[%clk 0:02:31]} 21... f4 {[%clk 0:02:21.4]} 22. exf4 {[%clk 0:02:26.4]}
22... Bxf4 {[%clk 0:02:21.4]} 23. Bxf4 {[%clk 0:02:25.4]} 23... Qf6 {[%clk
0:02:19]} 24. Bd6 {[%clk 0:02:23.2]} 24... Qxf1+ {[%clk 0:02:17.7]} 25. Qxf1
{[%clk 0:02:23.3]} 25... Rxf1+ {[%clk 0:02:18.5]} 26. Rxf1 {[%clk 0:02:23.4]}
26... Re8 {[%clk 0:02:13.1]} 27. Kf2 {[%clk 0:02:21.7]} 27... Nf6 {[%clk
0:02:08.4]} 28. Ke3 {[%clk 0:02:21.8]} 28... Nd7 {[%clk 0:02:04]} 29. g4 {[%clk
0:02:21.7]} 29... Nf6 {[%clk 0:02:00.3]} 30. g5 {[%clk 0:02:21.1]} 30... Nh5
{[%clk 0:01:59.8]} 31. Ne2 {[%clk 0:02:20.6]} 31... g6 {[%clk 0:01:59.7]} 32.
Nf4 {[%clk 0:02:20]} 32... Ng3 {[%clk 0:01:59.6]} 33. Rd1 {[%clk 0:02:07.5]}
33... Nf5+ {[%clk 0:01:59.5]} 34. Ke2 {[%clk 0:02:07.4]} 34... Kf7 {[%clk
0:01:59.6]} 35. Be5 {[%clk 0:02:05.9]} 35... Ra8 {[%clk 0:01:56.1]} 36. Kd2
{[%clk 0:01:52.5]} 36... Re8 {[%clk 0:01:49.1]} 37. Rf1 {[%clk 0:01:51.7]} 37...
Ra8 {[%clk 0:01:44.9]} 38. Rh1 {[%clk 0:01:50.6]} 38... Nh4 {[%clk 0:01:42.4]}
39. Ke2 {[%clk 0:01:49.1]} 39... Nf5 {[%clk 0:01:40.5]} 40. Kf2 {[%clk
0:01:48.2]} 40... Nh4 {[%clk 0:01:36.5]} 41. Ng2 {[%clk 0:01:44.6]} 41... Nf5
{[%clk 0:01:36.1]} 42. h4 {[%clk 0:01:44.8]} 42... a5 {[%clk 0:01:31.5]} 43. b5
{[%clk 0:01:43.3]} 43... cxb5 {[%clk 0:01:31.1]} 44. axb5 {[%clk 0:01:44.2]}
44... a4 {[%clk 0:01:31.6]} 45. b6 {[%clk 0:01:43.1]} 45... a3 {[%clk
0:01:31.6]} 46. c6 {[%clk 0:01:43.2]} 46... a2 {[%clk 0:01:29.9]} 47. cxb7
{[%clk 0:01:43.1]} 47... a1=Q {[%clk 0:01:25.5]} 48. Rxa1 {[%clk 0:01:42.9]}
48... Rxa1 {[%clk 0:01:25.7]} 49. b8=Q {[%clk 0:01:42.9]} 49... Ra2+ {[%clk
0:01:26]} 50. Kg1 {[%clk 0:01:43.3]} 1-0